[Event "Titled Tuesday Blitz April 19 Early 2022"]
[White "Lach, Aleksandra"]
[Black "Piesik, Piotr"]
[WhiteFideId "1134299"]
[BlackFideId "1136194"]
[WhiteElo "2172"]
[BlackElo "2190"]
[Result "0-1"]
[Round "05"]
[TimeControl "180+1"]
[Date "2022.04.19"]
[WhiteClock "0:00:06"]
[BlackClock "0:00:19"]

1. e4 {[%clk 0:03:00]}  g6 {[%clk 0:02:29]} 2. d4 {[%clk 0:02:56]}  Bg7 {[%clk 0:02:29]} 3. Nc3 {[%clk 0:02:56]}  c6 {[%clk 0:02:29]} 4. Be3 {[%clk 0:02:52]}  d5 {[%clk 0:02:29]} 5. e5 {[%clk 0:02:48]}  Nh6 {[%clk 0:02:28]} 6. Qd2 {[%clk 0:02:43]}  Nf5 {[%clk 0:02:28]} 7. Bf4 {[%clk 0:02:43]}  c5 {[%clk 0:02:11]} 8. dxc5 {[%clk 0:02:29]}  d4 {[%clk 0:02:11]} 9. O-O-O {[%clk 0:02:25]}  Nc6 {[%clk 0:02:04]} 10. Nb5 {[%clk 0:02:17]}  a6 {[%clk 0:02:00]} 11. Na3 {[%clk 0:02:15]}  Nxe5 {[%clk 0:01:53]} 12. h3 {[%clk 0:01:44]}  h5 {[%clk 0:01:45]} 13. Ne2 {[%clk 0:01:27]}  Qd5 {[%clk 0:01:43]} 14. Kb1 {[%clk 0:01:18]}  Be6 {[%clk 0:01:42]} 15. Nc1 {[%clk 0:01:16]}  Qxc5 {[%clk 0:01:38]} 16. Bd3 {[%clk 0:01:14]}  Nxd3 {[%clk 0:01:35]} 17. Qxd3 {[%clk 0:01:03]}  Rd8 {[%clk 0:01:24]} 18. g4 {[%clk 0:00:57]}  hxg4 {[%clk 0:01:22]} 19. hxg4 {[%clk 0:00:57]}  Rxh1 {[%clk 0:01:22]} 20. Rxh1 {[%clk 0:00:58]}  Nd6 {[%clk 0:01:22]} 21. Bxd6 {[%clk 0:00:58]}  Rxd6 {[%clk 0:01:17]} 22. f3 {[%clk 0:00:49]}  b5 {[%clk 0:01:10]} 23. Nb3 {[%clk 0:00:50]}  Qe5 {[%clk 0:01:02]} 24. Nd2 {[%clk 0:00:44]}  Bd5 {[%clk 0:00:52]} 25. Rf1 {[%clk 0:00:33]}  Qe3 {[%clk 0:00:51]} 26. Ne4 {[%clk 0:00:21]}  Bxe4 {[%clk 0:00:50]} 27. Qxe4 {[%clk 0:00:18]}  Qxe4 {[%clk 0:00:50]} 28. fxe4 {[%clk 0:00:19]}  Re6 {[%clk 0:00:49]} 29. Re1 {[%clk 0:00:13]}  Bh6 {[%clk 0:00:45]} 30. c4 {[%clk 0:00:11]}  dxc3 {[%clk 0:00:43]} 31. bxc3 {[%clk 0:00:11]}  Bd2 {[%clk 0:00:42]} 32. Re2 {[%clk 0:00:11]}  Bxc3 {[%clk 0:00:42]} 33. Kc2 {[%clk 0:00:12]}  Bb4 {[%clk 0:00:38]} 34. Nb1 {[%clk 0:00:12]}  f5 {[%clk 0:00:35]} 35. gxf5 {[%clk 0:00:10]}  gxf5 {[%clk 0:00:35]} 36. Kb3 {[%clk 0:00:08]}  Ba5 {[%clk 0:00:33]} 37. e5 {[%clk 0:00:08]}  Bc7 {[%clk 0:00:33]} 38. Nc3 {[%clk 0:00:07]}  Rxe5 {[%clk 0:00:33]} 39. Rg2 {[%clk 0:00:07]}  Re3 {[%clk 0:00:25]} 40. Kc2 {[%clk 0:00:07]}  e6 {[%clk 0:00:22]} 41. Rg8+ {[%clk 0:00:07]}  Kd7 {[%clk 0:00:22]} 42. Rg7+ {[%clk 0:00:07]}  Kc6 {[%clk 0:00:23]} 43. Rg6 {[%clk 0:00:06]}  f4 {[%clk 0:00:20]} 44. Kd2 {[%clk 0:00:06]}  Ba5 {[%clk 0:00:19]} 0-1


[Site "https://www.chess.com"]

[Event "Titled Tuesday Blitz April 19 Early 2022"]
[White "Le Ruyet, Leopold"]
[Black "Palachev, Petr"]
[WhiteFideId "645923"]
[BlackFideId "24129003"]
[WhiteElo "2276"]
[BlackElo "2339"]
[Result "0-1"]
[Round "05"]
[TimeControl "180+1"]
[Date "2022.04.19"]
[WhiteClock "0:00:01"]
[BlackClock "0:00:12"]

1. e4 {[%clk 0:03:00]}  c6 {[%clk 0:02:54]} 2. d4 {[%clk 0:03:00]}  d5 {[%clk 0:02:55]} 3. e5 {[%clk 0:03:00]}  Bf5 {[%clk 0:02:55]} 4. h4 {[%clk 0:03:00]}  Qc7 {[%clk 0:02:54]} 5. c4 {[%clk 0:02:56]}  dxc4 {[%clk 0:02:50]} 6. Bxc4 {[%clk 0:02:52]}  Be4 {[%clk 0:02:42]} 7. Nf3 {[%clk 0:02:51]}  Bd5 {[%clk 0:02:39]} 8. Bd3 {[%clk 0:02:48]}  e6 {[%clk 0:02:38]} 9. Nc3 {[%clk 0:02:48]}  Ne7 {[%clk 0:02:37]} 10. h5 {[%clk 0:02:47]}  Nd7 {[%clk 0:02:35]} 11. h6 {[%clk 0:02:45]}  g6 {[%clk 0:02:35]} 12. Bg5 {[%clk 0:02:43]}  O-O-O {[%clk 0:02:28]} 13. Rc1 {[%clk 0:02:29]}  Nb6 {[%clk 0:02:24]} 14. Nb5 {[%clk 0:02:22]}  Qb8 {[%clk 0:02:19]} 15. Bf6 {[%clk 0:02:15]}  Rg8 {[%clk 0:02:18]} 16. Ng5 {[%clk 0:02:13]}  a6 {[%clk 0:02:02]} 17. Nd6+ {[%clk 0:01:32]}  Rxd6 {[%clk 0:02:02]} 18. exd6 {[%clk 0:01:31]}  Qxd6 {[%clk 0:02:00]} 19. Be5 {[%clk 0:01:17]}  Qb4+ {[%clk 0:00:51]} 20. Qd2 {[%clk 0:01:16]}  Nf5 {[%clk 0:00:48]} 21. Bxf5 {[%clk 0:00:43]}  gxf5 {[%clk 0:00:45]} 22. Nxh7 {[%clk 0:00:37]}  Bxg2 {[%clk 0:00:35]} 23. Nxf8 {[%clk 0:00:25]}  Qxf8 {[%clk 0:00:26]} 24. Rg1 {[%clk 0:00:10]}  f6 {[%clk 0:00:25]} 25. h7 {[%clk 0:00:07]}  Rg4 {[%clk 0:00:23]} 26. Bd6 {[%clk 0:00:05]}  Qg7 {[%clk 0:00:20]} 27. Bg3 {[%clk 0:00:05]}  Bf3 {[%clk 0:00:15]} 28. Qe3 {[%clk 0:00:05]}  Re4 {[%clk 0:00:13]} 29. Qxe4 {[%clk 0:00:03]}  fxe4 {[%clk 0:00:13]} 30. d5 {[%clk 0:00:03]}  Nxd5 {[%clk 0:00:13]} 31. Kd2 {[%clk 0:00:02]}  Qxh7 {[%clk 0:00:12]} 32. b4 {[%clk 0:00:02]}  e3+ {[%clk 0:00:12]} 33. fxe3 {[%clk 0:00:01]}  Nxb4 {[%clk 0:00:13]} 34. Rc4 {[%clk 0:00:01]}  Qd3+ {[%clk 0:00:12]} 0-1


[Site "https://www.chess.com"]

[Event "Titled Tuesday Blitz April 19 Early 2022"]
[White "Lewtak, Damian"]
[Black "Lashkin, Jegor"]
[WhiteFideId "1141724"]
[BlackFideId "13907808"]
[WhiteElo "2362"]
[BlackElo "2368"]
[Result "1/2-1/2"]
[Round "05"]
[TimeControl "180+1"]
[Date "2022.04.19"]
[WhiteClock "0:00:03"]
[BlackClock "0:00:04"]

1. d4 {[%clk 0:03:00]}  Nf6 {[%clk 0:02:59]} 2. c3 {[%clk 0:02:55]}  d5 {[%clk 0:02:59]} 3. Bf4 {[%clk 0:02:54]}  c5 {[%clk 0:02:53]} 4. e3 {[%clk 0:02:55]}  e6 {[%clk 0:02:49]} 5. Nd2 {[%clk 0:02:54]}  Nbd7 {[%clk 0:02:47]} 6. Ngf3 {[%clk 0:02:54]}  Be7 {[%clk 0:02:46]} 7. Bd3 {[%clk 0:02:53]}  O-O {[%clk 0:02:45]} 8. Qe2 {[%clk 0:02:52]}  b6 {[%clk 0:02:42]} 9. e4 {[%clk 0:02:52]}  dxe4 {[%clk 0:02:26]} 10. Nxe4 {[%clk 0:02:51]}  Bb7 {[%clk 0:02:26]} 11. Nxf6+ {[%clk 0:02:45]}  Nxf6 {[%clk 0:02:26]} 12. dxc5 {[%clk 0:02:45]}  bxc5 {[%clk 0:02:22]} 13. Rd1 {[%clk 0:02:42]}  Qb6 {[%clk 0:02:21]} 14. O-O {[%clk 0:02:41]}  Rad8 {[%clk 0:02:18]} 15. Ne5 {[%clk 0:02:39]}  Bd5 {[%clk 0:02:02]} 16. c4 {[%clk 0:02:30]}  Bb7 {[%clk 0:02:01]} 17. b3 {[%clk 0:02:24]}  a5 {[%clk 0:01:51]} 18. Ng4 {[%clk 0:02:23]}  Nxg4 {[%clk 0:01:43]} 19. Qxg4 {[%clk 0:02:24]}  Bf6 {[%clk 0:01:43]} 20. Bg5 {[%clk 0:02:15]}  Bxg5 {[%clk 0:01:32]} 21. Qxg5 {[%clk 0:02:16]}  h6 {[%clk 0:01:31]} 22. Qg3 {[%clk 0:02:14]}  Rd4 {[%clk 0:01:30]} 23. Bc2 {[%clk 0:02:09]}  Rfd8 {[%clk 0:01:30]} 24. Rxd4 {[%clk 0:02:09]}  cxd4 {[%clk 0:01:22]} 25. Qd3 {[%clk 0:02:09]}  g6 {[%clk 0:01:19]} 26. a3 {[%clk 0:02:04]}  Qc5 {[%clk 0:01:18]} 27. Ra1 {[%clk 0:01:56]}  Kg7 {[%clk 0:01:17]} 28. h3 {[%clk 0:01:52]}  Bc6 {[%clk 0:01:05]} 29. Qd2 {[%clk 0:01:44]}  Rb8 {[%clk 0:00:51]} 30. Rb1 {[%clk 0:01:37]}  e5 {[%clk 0:00:43]} 31. Ra1 {[%clk 0:01:14]}  e4 {[%clk 0:00:41]} 32. Bd1 {[%clk 0:01:09]}  Qe5 {[%clk 0:00:29]} 33. Ra2 {[%clk 0:00:59]}  h5 {[%clk 0:00:17]} 34. b4 {[%clk 0:00:56]}  axb4 {[%clk 0:00:15]} 35. axb4 {[%clk 0:00:57]}  Bd7 {[%clk 0:00:12]} 36. Ra5 {[%clk 0:00:50]}  Qf6 {[%clk 0:00:11]} 37. Rd5 {[%clk 0:00:47]}  Bf5 {[%clk 0:00:10]} 38. b5 {[%clk 0:00:42]}  d3 {[%clk 0:00:10]} 39. Kh2 {[%clk 0:00:35]}  Ra8 {[%clk 0:00:09]} 40. c5 {[%clk 0:00:32]}  Be6 {[%clk 0:00:09]} 41. Rd6 {[%clk 0:00:16]}  Qe5+ {[%clk 0:00:09]} 42. g3 {[%clk 0:00:17]}  Qxc5 {[%clk 0:00:10]} 43. Qb2+ {[%clk 0:00:16]}  Kh7 {[%clk 0:00:10]} 44. Rc6 {[%clk 0:00:16]}  Qf5 {[%clk 0:00:10]} 45. g4 {[%clk 0:00:08]}  Qf4+ {[%clk 0:00:09]} 46. Kg1 {[%clk 0:00:08]}  hxg4 {[%clk 0:00:10]} 47. hxg4 {[%clk 0:00:07]}  Bxg4 {[%clk 0:00:10]} 48. Bb3 {[%clk 0:00:06]}  Qg5 {[%clk 0:00:08]} 49. Qf6 {[%clk 0:00:03]}  Qxf6 {[%clk 0:00:07]} 50. Rxf6 {[%clk 0:00:04]}  Bf3 {[%clk 0:00:06]} 51. Rxf7+ {[%clk 0:00:03]}  Kh6 {[%clk 0:00:07]} 52. Kh2 {[%clk 0:00:03]}  Kg5 {[%clk 0:00:06]} 53. b6 {[%clk 0:00:02]}  Ra1 {[%clk 0:00:05]} 54. b7 {[%clk 0:00:01]}  Rh1+ {[%clk 0:00:03]} 55. Kg3 {[%clk 0:00:01]}  Rg1+ {[%clk 0:00:04]} 56. Kh2 {[%clk 0:00:02]}  Rh1+ {[%clk 0:00:04]} 57. Kg3 {[%clk 0:00:02]}  Rg1+ {[%clk 0:00:04]} 58. Kh2 {[%clk 0:00:03]}  Rh1+ {[%clk 0:00:04]} 1/2-1/2


[Site "https://www.chess.com"]

[Event "Titled Tuesday Blitz April 19 Early 2022"]
[White "Liyanage, Ranindu Dilshan"]
[Black "Melaugh, Shane"]
[WhiteFideId "9915834"]
[BlackFideId "2509580"]
[WhiteElo "1858"]
[BlackElo "1972"]
[Result "0-1"]
[Round "05"]
[TimeControl "180+1"]
[Date "2022.04.19"]
[WhiteClock "0:00:08"]
[BlackClock "0:00:05"]

1. d4 {[%clk 0:03:00]}  e6 {[%clk 0:02:57]} 2. Nc3 {[%clk 0:03:01]}  d5 {[%clk 0:02:54]} 3. e4 {[%clk 0:02:59]}  Nf6 {[%clk 0:02:54]} 4. exd5 {[%clk 0:02:59]}  exd5 {[%clk 0:02:53]} 5. Bd3 {[%clk 0:02:59]}  c6 {[%clk 0:02:42]} 6. Nge2 {[%clk 0:02:58]}  Bg4 {[%clk 0:02:41]} 7. f3 {[%clk 0:02:57]}  Bh5 {[%clk 0:02:41]} 8. g4 {[%clk 0:02:58]}  Bg6 {[%clk 0:02:41]} 9. h4 {[%clk 0:02:59]}  Bd6 {[%clk 0:02:36]} 10. h5 {[%clk 0:02:53]}  Bxd3 {[%clk 0:02:34]} 11. Qxd3 {[%clk 0:02:54]}  Qe7 {[%clk 0:02:30]} 12. h6 {[%clk 0:02:48]}  g6 {[%clk 0:02:27]} 13. Bg5 {[%clk 0:02:48]}  Nbd7 {[%clk 0:02:22]} 14. O-O-O {[%clk 0:02:49]}  O-O-O {[%clk 0:02:21]} 15. Rhe1 {[%clk 0:02:45]}  Rde8 {[%clk 0:02:15]} 16. Kb1 {[%clk 0:02:42]}  Qd8 {[%clk 0:02:08]} 17. Nf4 {[%clk 0:02:32]}  Qc7 {[%clk 0:02:08]} 18. Qd2 {[%clk 0:02:29]}  Rxe1 {[%clk 0:01:59]} 19. Rxe1 {[%clk 0:02:30]}  Re8 {[%clk 0:01:58]} 20. Nd3 {[%clk 0:02:27]}  Rxe1+ {[%clk 0:01:27]} 21. Qxe1 {[%clk 0:02:28]}  b6 {[%clk 0:01:27]} 22. a3 {[%clk 0:02:13]}  Kb7 {[%clk 0:00:56]} 23. Qe2 {[%clk 0:01:54]}  Qd8 {[%clk 0:00:47]} 24. Ne5 {[%clk 0:01:40]}  Qe7 {[%clk 0:00:42]} 25. f4 {[%clk 0:01:39]}  Qe6 {[%clk 0:00:38]} 26. f5 {[%clk 0:01:07]}  gxf5 {[%clk 0:00:36]} 27. Nxd7 {[%clk 0:01:08]}  Nxd7 {[%clk 0:00:31]} 28. gxf5 {[%clk 0:01:03]}  Qxf5 {[%clk 0:00:27]} 29. Bd2 {[%clk 0:01:00]}  Nf6 {[%clk 0:00:21]} 30. Qg2 {[%clk 0:00:54]}  Ne4 {[%clk 0:00:20]} 31. Nxe4 {[%clk 0:00:42]}  Qxe4 {[%clk 0:00:13]} 32. Qg7 {[%clk 0:00:37]}  Qg6 {[%clk 0:00:12]} 33. a4 {[%clk 0:00:27]}  a5 {[%clk 0:00:09]} 34. b3 {[%clk 0:00:26]}  Bb4 {[%clk 0:00:09]} 35. Bf4 {[%clk 0:00:20]}  Qf5 {[%clk 0:00:07]} 36. Bc1 {[%clk 0:00:12]}  Qf1 {[%clk 0:00:05]} 37. Qg3 {[%clk 0:00:10]}  Bd2 {[%clk 0:00:04]} 38. Qg7 {[%clk 0:00:07]}  Qxc1+ {[%clk 0:00:04]} 39. Ka2 {[%clk 0:00:07]}  Qxc2+ {[%clk 0:00:05]} 40. Ka1 {[%clk 0:00:08]}  Bc3# {[%clk 0:00:05]} 0-1


[Site "https://www.chess.com"]

[Event "Titled Tuesday Blitz April 19 Early 2022"]
[White "Makarian, Rudik"]
[Black "Agasarov, Benik"]
[WhiteFideId "44105681"]
[BlackFideId "13314823"]
[WhiteElo "2388"]
[BlackElo "2510"]
[Result "1-0"]
[Round "05"]
[TimeControl "180+1"]
[Date "2022.04.19"]
[WhiteClock "0:01:21"]
[BlackClock "0:01:41"]

1. c4 {[%clk 0:02:54]}  e5 {[%clk 0:02:59]} 2. Nf3 {[%clk 0:02:54]}  Nc6 {[%clk 0:02:57]} 3. d3 {[%clk 0:02:53]}  Nf6 {[%clk 0:02:57]} 4. a3 {[%clk 0:02:54]}  d5 {[%clk 0:02:56]} 5. cxd5 {[%clk 0:02:55]}  Nxd5 {[%clk 0:02:56]} 6. h3 {[%clk 0:02:56]}  Be7 {[%clk 0:02:51]} 7. e3 {[%clk 0:02:54]}  O-O {[%clk 0:02:51]} 8. Be2 {[%clk 0:02:55]}  f5 {[%clk 0:02:50]} 9. Nc3 {[%clk 0:02:54]}  Kh8 {[%clk 0:02:50]} 10. Bd2 {[%clk 0:02:53]}  f4 {[%clk 0:02:50]} 11. Nxd5 {[%clk 0:02:51]}  Qxd5 {[%clk 0:02:50]} 12. e4 {[%clk 0:02:51]}  Qd6 {[%clk 0:02:46]} 13. Bc3 {[%clk 0:02:51]}  Bf6 {[%clk 0:02:46]} 14. b4 {[%clk 0:02:50]}  Nd4 {[%clk 0:02:46]} 15. O-O {[%clk 0:02:48]}  Bd7 {[%clk 0:02:44]} 16. Rc1 {[%clk 0:02:37]}  Nxf3+ {[%clk 0:02:41]} 17. Bxf3 {[%clk 0:02:37]}  Bb5 {[%clk 0:02:41]} 18. Be2 {[%clk 0:02:27]}  Rad8 {[%clk 0:02:40]} 19. Qb3 {[%clk 0:02:10]}  Qa6 {[%clk 0:02:22]} 20. Qb2 {[%clk 0:02:02]}  Rfe8 {[%clk 0:02:14]} 21. Rfd1 {[%clk 0:01:56]}  Bxd3 {[%clk 0:02:12]} 22. b5 {[%clk 0:01:51]}  Bxe2 {[%clk 0:02:01]} 23. bxa6 {[%clk 0:01:30]}  Bxd1 {[%clk 0:01:56]} 24. axb7 {[%clk 0:01:30]}  f3 {[%clk 0:01:53]} 25. Ba5 {[%clk 0:01:25]}  Bg5 {[%clk 0:01:41]} 26. Rb1 {[%clk 0:01:21]} 1-0


[Site "https://www.chess.com"]

[Event "Titled Tuesday Blitz April 19 Early 2022"]
[White "Maltsevskaya, Aleksandra"]
[Black "Devaev, Alexander"]
[WhiteFideId "24174041"]
[BlackFideId "4169395"]
[WhiteElo "2235"]
[BlackElo "2185"]
[Result "0-1"]
[Round "05"]
[TimeControl "180+1"]
[Date "2022.04.19"]
[WhiteClock "0:00:04"]
[BlackClock "0:00:06"]

1. e4 {[%clk 0:03:00]}  c6 {[%clk 0:02:41]} 2. Nc3 {[%clk 0:02:52]}  d5 {[%clk 0:02:41]} 3. Nf3 {[%clk 0:02:52]}  dxe4 {[%clk 0:02:42]} 4. Nxe4 {[%clk 0:02:53]}  Nf6 {[%clk 0:02:42]} 5. Qe2 {[%clk 0:02:54]}  Bg4 {[%clk 0:02:41]} 6. c3 {[%clk 0:02:52]}  e6 {[%clk 0:02:40]} 7. d4 {[%clk 0:02:52]}  Nbd7 {[%clk 0:02:39]} 8. g3 {[%clk 0:02:52]}  Be7 {[%clk 0:02:33]} 9. Bg2 {[%clk 0:02:52]}  O-O {[%clk 0:02:34]} 10. O-O {[%clk 0:02:45]}  Nxe4 {[%clk 0:02:34]} 11. Qxe4 {[%clk 0:02:45]}  Bf5 {[%clk 0:02:35]} 12. Qe2 {[%clk 0:02:45]}  h6 {[%clk 0:02:36]} 13. Bf4 {[%clk 0:02:45]}  Rc8 {[%clk 0:02:33]} 14. Rfd1 {[%clk 0:02:39]}  Qb6 {[%clk 0:02:34]} 15. Ne5 {[%clk 0:02:29]}  Nxe5 {[%clk 0:02:28]} 16. Bxe5 {[%clk 0:02:30]}  Rfd8 {[%clk 0:02:22]} 17. h4 {[%clk 0:02:28]}  c5 {[%clk 0:02:06]} 18. d5 {[%clk 0:02:05]}  exd5 {[%clk 0:01:02]} 19. Bxg7 {[%clk 0:02:05]}  Kxg7 {[%clk 0:00:53]} 20. Qxe7 {[%clk 0:02:04]}  Be6 {[%clk 0:00:51]} 21. h5 {[%clk 0:01:56]}  Qxb2 {[%clk 0:00:40]} 22. Rac1 {[%clk 0:01:39]}  Rd7 {[%clk 0:00:37]} 23. Qh4 {[%clk 0:01:37]}  Qe2 {[%clk 0:00:27]} 24. Re1 {[%clk 0:01:15]}  Qg4 {[%clk 0:00:26]} 25. Qh2 {[%clk 0:01:16]}  b6 {[%clk 0:00:23]} 26. Re5 {[%clk 0:01:15]}  Rcd8 {[%clk 0:00:20]} 27. f3 {[%clk 0:01:12]}  Qc4 {[%clk 0:00:18]} 28. g4 {[%clk 0:01:10]}  d4 {[%clk 0:00:18]} 29. g5 {[%clk 0:01:09]}  dxc3 {[%clk 0:00:16]} 30. gxh6+ {[%clk 0:01:08]}  Kh8 {[%clk 0:00:15]} 31. Qg3 {[%clk 0:00:36]}  Rg8 {[%clk 0:00:15]} 32. Rg5 {[%clk 0:00:36]}  Qd4+ {[%clk 0:00:16]} 33. Kh2 {[%clk 0:00:35]}  Rxg5 {[%clk 0:00:12]} 34. Qxg5 {[%clk 0:00:36]}  Rd5 {[%clk 0:00:12]} 35. Qe7 {[%clk 0:00:16]}  Qe5+ {[%clk 0:00:10]} 36. Kh1 {[%clk 0:00:11]}  Rd7 {[%clk 0:00:08]} 37. Qf8+ {[%clk 0:00:09]}  Kh7 {[%clk 0:00:09]} 38. Rg1 {[%clk 0:00:09]}  Qh8 {[%clk 0:00:09]} 39. Qxh8+ {[%clk 0:00:05]}  Kxh8 {[%clk 0:00:10]} 40. f4 {[%clk 0:00:06]}  Bf5 {[%clk 0:00:05]} 41. Bf3 {[%clk 0:00:03]}  c2 {[%clk 0:00:04]} 42. Kh2 {[%clk 0:00:04]}  b5 {[%clk 0:00:03]} 43. Kg3 {[%clk 0:00:04]}  c4 {[%clk 0:00:04]} 44. Kh4 {[%clk 0:00:04]}  f6 {[%clk 0:00:02]} 45. h7 {[%clk 0:00:04]}  Kxh7 {[%clk 0:00:01]} 46. Re1 {[%clk 0:00:04]}  b4 {[%clk 0:00:02]} 47. h6 {[%clk 0:00:04]}  b3 {[%clk 0:00:02]} 48. Kg3 {[%clk 0:00:04]}  Kxh6 {[%clk 0:00:02]} 49. Re8 {[%clk 0:00:02]}  Kg7 {[%clk 0:00:03]} 50. Rh8 {[%clk 0:00:03]}  Kf7 {[%clk 0:00:03]} 51. Bh5+ {[%clk 0:00:02]}  Ke6 {[%clk 0:00:03]} 52. Re8+ {[%clk 0:00:03]}  Kd6 {[%clk 0:00:04]} 53. Bf3 {[%clk 0:00:03]}  Kc5 {[%clk 0:00:04]} 54. Rc8+ {[%clk 0:00:04]}  Kb4 {[%clk 0:00:05]} 55. axb3 {[%clk 0:00:03]}  c1=Q {[%clk 0:00:04]} 56. Rxc4+ {[%clk 0:00:03]}  Qxc4 {[%clk 0:00:05]} 57. bxc4 {[%clk 0:00:04]}  Kxc4 {[%clk 0:00:06]} 58. Bc6 {[%clk 0:00:04]}  Rd3+ {[%clk 0:00:06]} 0-1


[Site "https://www.chess.com"]

[Event "Titled Tuesday Blitz April 19 Early 2022"]
[White "Manukian, Artak"]
[Black "Winkels, Marcel"]
[WhiteFideId "13301373"]
[BlackFideId "1003887"]
[WhiteElo "2323"]
[BlackElo "1900"]
[Result "1/2-1/2"]
[Round "05"]
[TimeControl "180+1"]
[Date "2022.04.19"]
[WhiteClock "0:00:17"]
[BlackClock "0:00:01"]

1. e4 {[%clk 0:03:00]}  c5 {[%clk 0:02:58]} 2. Nf3 {[%clk 0:03:00]}  d6 {[%clk 0:02:59]} 3. Bb5+ {[%clk 0:02:59]}  Nd7 {[%clk 0:02:57]} 4. O-O {[%clk 0:02:57]}  a6 {[%clk 0:02:56]} 5. Bd3 {[%clk 0:02:57]}  Ngf6 {[%clk 0:02:52]} 6. a4 {[%clk 0:02:55]}  e6 {[%clk 0:02:49]} 7. Re1 {[%clk 0:02:55]}  Be7 {[%clk 0:02:48]} 8. c3 {[%clk 0:02:55]}  O-O {[%clk 0:02:45]} 9. Bc2 {[%clk 0:02:55]}  b6 {[%clk 0:02:41]} 10. d4 {[%clk 0:02:55]}  Bb7 {[%clk 0:02:29]} 11. e5 {[%clk 0:02:54]}  dxe5 {[%clk 0:02:28]} 12. dxe5 {[%clk 0:02:55]}  Ne8 {[%clk 0:02:28]} 13. Qd3 {[%clk 0:02:32]}  g6 {[%clk 0:02:26]} 14. Bh6 {[%clk 0:02:25]}  Ng7 {[%clk 0:02:25]} 15. Nbd2 {[%clk 0:02:25]}  Qc7 {[%clk 0:02:18]} 16. Qe2 {[%clk 0:02:03]}  Rfd8 {[%clk 0:02:15]} 17. Bg5 {[%clk 0:01:57]}  Bxg5 {[%clk 0:01:52]} 18. Nxg5 {[%clk 0:01:55]}  Qc6 {[%clk 0:01:53]} 19. Ndf3 {[%clk 0:01:39]}  h6 {[%clk 0:01:44]} 20. Be4 {[%clk 0:01:32]}  Qc7 {[%clk 0:01:40]} 21. Bxb7 {[%clk 0:01:32]}  Qxb7 {[%clk 0:01:39]} 22. Ne4 {[%clk 0:01:33]}  Nf5 {[%clk 0:01:34]} 23. Rad1 {[%clk 0:01:28]}  Nf8 {[%clk 0:01:32]} 24. Nf6+ {[%clk 0:01:18]}  Kg7 {[%clk 0:01:28]} 25. Nd2 {[%clk 0:01:04]}  Qc7 {[%clk 0:01:12]} 26. Nf3 {[%clk 0:00:51]}  Rxd1 {[%clk 0:01:09]} 27. Rxd1 {[%clk 0:00:49]}  Rd8 {[%clk 0:00:59]} 28. h4 {[%clk 0:00:43]}  Rxd1+ {[%clk 0:00:45]} 29. Qxd1 {[%clk 0:00:41]}  Qc6 {[%clk 0:00:30]} 30. h5 {[%clk 0:00:29]}  g5 {[%clk 0:00:27]} 31. b3 {[%clk 0:00:27]}  Nh7 {[%clk 0:00:23]} 32. Qd8 {[%clk 0:00:24]}  Nxf6 {[%clk 0:00:15]} 33. exf6+ {[%clk 0:00:22]}  Kh7 {[%clk 0:00:14]} 34. Qf8 {[%clk 0:00:16]}  Qd7 {[%clk 0:00:11]} 35. Ne5 {[%clk 0:00:16]}  Qd1+ {[%clk 0:00:07]} 36. Kh2 {[%clk 0:00:16]}  Qxh5+ {[%clk 0:00:08]} 37. Kg1 {[%clk 0:00:16]}  Qd1+ {[%clk 0:00:06]} 38. Kh2 {[%clk 0:00:17]}  Qh5+ {[%clk 0:00:04]} 39. Kg1 {[%clk 0:00:17]}  Qd1+ {[%clk 0:00:02]} 40. Kh2 {[%clk 0:00:17]}  Qh5+ {[%clk 0:00:01]} 1/2-1/2


[Site "https://www.chess.com"]

[Event "Titled Tuesday Blitz April 19 Early 2022"]
[White "Martinez Alcantara, Jose Eduardo"]
[Black "Visakh N R"]
[WhiteFideId "3805662"]
[BlackFideId "25012223"]
[WhiteElo "2690"]
[BlackElo "2448"]
[Result "0-1"]
[Round "05"]
[TimeControl "180+1"]
[Date "2022.04.19"]
[WhiteClock "0:00:02"]
[BlackClock "0:00:26"]

1. e4 {[%clk 0:02:44]}  c5 {[%clk 0:02:56]} 2. Nf3 {[%clk 0:02:44]}  d6 {[%clk 0:02:54]} 3. Bb5+ {[%clk 0:02:43]}  Bd7 {[%clk 0:02:50]} 4. Bxd7+ {[%clk 0:02:43]}  Qxd7 {[%clk 0:02:49]} 5. c4 {[%clk 0:02:43]}  Nf6 {[%clk 0:02:48]} 6. Nc3 {[%clk 0:02:42]}  Nc6 {[%clk 0:02:47]} 7. d4 {[%clk 0:02:43]}  cxd4 {[%clk 0:02:47]} 8. Nxd4 {[%clk 0:02:43]}  e6 {[%clk 0:02:47]} 9. O-O {[%clk 0:02:41]}  Be7 {[%clk 0:02:47]} 10. b3 {[%clk 0:02:37]}  O-O {[%clk 0:02:46]} 11. Bb2 {[%clk 0:02:38]}  Rfd8 {[%clk 0:02:47]} 12. Nxc6 {[%clk 0:02:29]}  Qxc6 {[%clk 0:02:46]} 13. Qe2 {[%clk 0:02:27]}  a6 {[%clk 0:02:45]} 14. Rac1 {[%clk 0:02:24]}  Rac8 {[%clk 0:02:42]} 15. Rfe1 {[%clk 0:02:14]}  Qc7 {[%clk 0:02:34]} 16. Kh1 {[%clk 0:02:06]}  Nd7 {[%clk 0:02:33]} 17. f4 {[%clk 0:02:04]}  Bf6 {[%clk 0:02:33]} 18. Qf3 {[%clk 0:02:04]}  Qb8 {[%clk 0:02:27]} 19. g4 {[%clk 0:02:01]}  g6 {[%clk 0:02:23]} 20. g5 {[%clk 0:02:01]}  Bg7 {[%clk 0:02:23]} 21. f5 {[%clk 0:01:46]}  b5 {[%clk 0:02:21]} 22. f6 {[%clk 0:01:45]}  Bf8 {[%clk 0:02:20]} 23. cxb5 {[%clk 0:01:45]}  axb5 {[%clk 0:02:19]} 24. Ne2 {[%clk 0:01:42]}  Qa8 {[%clk 0:02:09]} 25. Nd4 {[%clk 0:01:28]}  Qxa2 {[%clk 0:01:59]} 26. Qe2 {[%clk 0:01:28]}  Qa8 {[%clk 0:01:50]} 27. Nxb5 {[%clk 0:01:07]}  d5 {[%clk 0:01:36]} 28. e5 {[%clk 0:00:37]}  d4+ {[%clk 0:01:32]} 29. Qg2 {[%clk 0:00:37]}  Rxc1 {[%clk 0:01:20]} 30. Rxc1 {[%clk 0:00:34]}  Qb8 {[%clk 0:00:53]} 31. Nxd4 {[%clk 0:00:34]}  Nxe5 {[%clk 0:00:53]} 32. Qe4 {[%clk 0:00:32]}  Rd5 {[%clk 0:00:49]} 33. h4 {[%clk 0:00:31]}  h6 {[%clk 0:00:49]} 34. gxh6 {[%clk 0:00:28]}  Qd8 {[%clk 0:00:47]} 35. Rf1 {[%clk 0:00:23]}  Kh7 {[%clk 0:00:47]} 36. h5 {[%clk 0:00:22]}  Bxh6 {[%clk 0:00:42]} 37. Kg2 {[%clk 0:00:22]}  Kg8 {[%clk 0:00:31]} 38. Rh1 {[%clk 0:00:15]}  Qxf6 {[%clk 0:00:26]} 39. hxg6 {[%clk 0:00:14]}  Nxg6 {[%clk 0:00:26]} 40. Rf1 {[%clk 0:00:02]}  Rg5+ {[%clk 0:00:26]} 0-1


[Site "https://www.chess.com"]